fUST/lending_fUST_20250623
["ID","MTS","AMOUNT","RATE_DAILY","PERIOD"]
[367097557,1750655445080,-804.67,0.00021917,2]
[367097558,1750655445089,-460.0,0.00021917,2]
[367097559,1750655445099,-460.0,0.00021917,2]
[367097560,1750655445108,-499.85657197,0.00021917,2]
[367097561,1750655445117,-460.0,0.00021917,2]
[367097562,1750655445126,-812.13,0.00021917,2]
[367097563,1750655445136,-1665.82,0.00021917,2]
[367097564,1750655445145,-460.0,0.00021917,2]
[367097565,1750655445154,-472.85,0.00021917,2]
[367097566,1750655445164,-460.0,0.00021917,2]
[367097567,1750655445173,-527.50701064,0.00021917,2]
[367097569,1750655445184,-1137.59,0.00021917,2]
[367097570,1750655445194,-460.0,0.00021917,2]
[367097571,1750655445203,-460.21410208,0.00021917,2]
[367097572,1750655445212,-460.0,0.00021917,2]
[367097573,1750655445221,-1585.74,0.00021917,2]
[367097574,1750655445232,-460.0,0.00021917,2]
[367097576,1750655445242,-460.0,0.00021917,2]
[367097577,1750655445251,-460.19304519,0.00021917,2]
[367097578,1750655445261,-460.0,0.00021917,2]
[367097579,1750655445270,-460.0,0.00021917,2]
[367097580,1750655445280,-460.0,0.00021917,2]
[367097581,1750655445290,-151.0,0.00021917,2]
[367097582,1750655445300,-460.0,0.00021917,2]
[367097583,1750655445309,-460.0,0.00021917,2]
[367097584,1750655445319,-460.0,0.00021917,2]
[367097585,1750655445328,-460.0,0.00021917,2]
[367097586,1750655445338,-460.0,0.00021917,2]
[367097587,1750655445347,-460.0,0.00021917,2]
[367097588,1750655445357,-460.0,0.00021917,2]
[367097589,1750655445367,-460.0,0.00021917,2]
[367097590,1750655445377,-460.0,0.00021917,2]
[367097591,1750655445386,-469.07939754,0.00021917,2]
[367097592,1750655445396,-1213.23,0.00021917,2]
[367097594,1750655445406,-489.65,0.00021917,2]
[367097596,1750655445416,-460.0,0.00021917,2]
[367097597,1750655445425,-1245.47,0.00021917,2]
[367097599,1750655445438,-460.0,0.00021917,2]
[367097601,1750655445448,-864.72,0.00021917,2]
[367097603,1750655445458,-460.0,0.00021917,2]
[367097604,1750655445467,-217.237617,0.00021917,2]
[367097606,1750655445478,-460.0,0.00021917,2]
[367097607,1750655445488,-460.0,0.00021917,2]
[367097608,1750655445499,-460.0,0.00021917,2]
[367097609,1750655445509,-460.0,0.00021917,2]
[367097610,1750655445519,-958.78,0.00021917,2]
[367097611,1750655445530,-460.0,0.00021917,2]
[367097612,1750655445539,-460.0,0.00021917,2]
[367097614,1750655445550,-460.0,0.00021917,2]
[367097615,1750655445560,-460.0,0.00021917,2]
[367097616,1750655445569,-840.37,0.00021917,2]
[367097617,1750655445579,-460.0,0.00021917,2]
[367097618,1750655445589,-262.44590082,0.00021917,2]
[367097619,1750655445600,-460.0,0.00021917,2]
[367097620,1750655445609,-460.0,0.00021917,2]
[367097621,1750655445619,-151.719977,0.00021917,2]
[367097622,1750655445628,-2145.04,0.00021917,2]
[367097623,1750655445638,-2026.51,0.00021917,2]
[367097624,1750655445647,-460.0,0.00021917,2]
[367097625,1750655445658,-503.32344317,0.00021917,2]
[367097626,1750655445668,-481.07,0.00021917,2]
[367097627,1750655445677,-460.0,0.00021917,2]
[367097628,1750655445692,-786.19,0.00021917,2]
[367097629,1750655445707,-1000.0,0.00021917,2]
[367097630,1750655445717,-460.0,0.00021917,2]
[367097631,1750655445726,-460.0,0.00021917,2]
[367097632,1750655445737,-460.0,0.00021917,2]
[367097633,1750655445746,-1158.93,0.00021917,2]
[367097634,1750655445756,-460.0,0.00021917,2]
[367097635,1750655445765,-460.0,0.00021917,2]
[367097636,1750655445776,-460.0,0.00021917,2]
[367097637,1750655445788,-404.62798394,0.00021917,2]
[367097638,1750655445799,-205.46665934,0.00021917,2]
[367097639,1750655445809,-460.0,0.00021917,2]
[367097640,1750655445819,-460.0,0.00021917,2]
[367097641,1750655445829,-400.5505396,0.00021917,2]
[367097642,1750655445840,-460.0,0.00021917,2]
[367097643,1750655445849,-460.0,0.00021917,2]
[367097644,1750655445859,-460.0,0.00021917,2]
[367097645,1750655445869,-464.23441407,0.00021917,2]
[367097646,1750655445880,-3653.09,0.00021917,2]
[367097647,1750655445890,-460.0,0.00021917,2]
[367097648,1750655445901,-1436.16,0.00021917,2]
[367097649,1750655445910,-460.0,0.00021917,2]
[367097650,1750655445921,-4984.98,0.00021917,2]
[367097651,1750655445933,-460.0,0.00021917,2]
[367097652,1750655445942,-3124.5,0.00021917,2]
[367097653,1750655445952,-450.0,0.00021917,2]
[367097654,1750655445962,-460.0,0.00021917,2]
[367097655,1750655445971,-8911.59,0.00021917,2]
[367097656,1750655445981,-589.89,0.00021917,2]
[367097657,1750655445990,-151.0,0.00021917,2]
[367097658,1750655446000,-873.11,0.00021917,2]
[367097659,1750655446010,-151.0,0.00021917,2]
[367097660,1750655446019,-460.0,0.00021917,2]
[367097661,1750655446028,-460.0,0.00021917,2]
[367097662,1750655446038,-460.0,0.00021917,2]
[367097663,1750655446047,-515.15,0.00021917,2]
[367097665,1750655446057,-460.0,0.00021917,2]
[367097666,1750655446066,-460.0,0.00021917,2]
[367097667,1750655446076,-642.85,0.00021917,2]
[367097668,1750655446085,-460.0,0.00021917,2]
[367097669,1750655446095,-460.0,0.00021917,2]
[367097670,1750655446105,-7999.05,0.00021917,2]
[367097671,1750655446115,-803.03,0.00021917,2]
[367097672,1750655446124,-460.0,0.00021917,2]
[367097673,1750655446134,-460.0,0.00021917,2]
[367097674,1750655446143,-2529.61,0.00021917,2]
[367097675,1750655446152,-1791.88,0.00021917,2]
[367097676,1750655446163,-460.0,0.00021917,2]
[367097677,1750655446173,-460.0,0.00021917,2]
[367097678,1750655446185,-703.42,0.00021917,2]
[367097679,1750655446195,-460.0,0.00021917,2]
[367097680,1750655446205,-460.0,0.00021917,2]
[367097681,1750655446214,-2768.88,0.00021917,2]
[367097682,1750655446224,-543.4,0.00021917,2]
[367097683,1750655446235,-920.08,0.00021917,2]
[367097684,1750655446245,-351.52281316,0.00021917,2]
[367097685,1750655446254,-460.0,0.00021917,2]
[367097686,1750655446264,-891.71,0.00021917,2]
[367097687,1750655446273,-460.0,0.00021917,2]
[367097688,1750655446283,-2438.96,0.00021917,2]
[367097689,1750655446292,-460.0,0.00021917,2]
[367097690,1750655446302,-460.4154213,0.00021917,2]
[367097691,1750655446311,-460.0,0.00021917,2]
[367097692,1750655446321,-460.0,0.00021917,2]
[367097693,1750655446331,-300.0,0.00021917,2]
[367097694,1750655446341,-1563.98,0.00021917,2]
[367097695,1750655446350,-624.0,0.00021917,2]
[367097696,1750655446360,-2269.34,0.00021917,2]
[367097697,1750655446370,-460.0,0.00021917,2]
[367097698,1750655446381,-548.05,0.00021917,2]
[367097699,1750655446391,-6328.16,0.00021917,2]
[367097700,1750655446400,-460.0,0.00021917,2]
[367097701,1750655446410,-460.0,0.00021917,2]
[367097702,1750655446420,-1285.22,0.00021917,2]
[367097703,1750655446429,-460.0,0.00021917,2]
[367097704,1750655446441,-1479.02,0.00021917,2]
[367097705,1750655446451,-2202.48,0.00021917,2]
[367097706,1750655446461,-460.0,0.00021917,2]
[367097707,1750655446470,-460.0,0.00021917,2]
[367097708,1750655446480,-460.0,0.00021917,2]
[367097709,1750655446490,-460.0,0.00021917,2]
[367097710,1750655446499,-1248.52,0.00021917,2]
[367097711,1750655446509,-460.0,0.00021917,2]
[367097712,1750655446519,-445.17769702,0.00021917,2]
[367097713,1750655446529,-1483.74,0.00021917,2]
[367097714,1750655446539,-500.0,0.00021917,2]
[367097715,1750655446548,-1137.43,0.00021917,2]
[367097716,1750655446558,-460.0,0.00021917,2]
[367097717,1750655446567,-460.0,0.00021917,2]
[367097718,1750655446577,-460.0,0.00021917,2]
[367097719,1750655446586,-152.026407,0.00021917,2]
[367097720,1750655446596,-1905.8,0.00021917,2]
[367097721,1750655446605,-460.0,0.00021917,2]
[367097722,1750655446614,-460.0,0.00021917,2]
[367097723,1750655446624,-460.0,0.00021917,2]
[367097724,1750655446634,-460.0,0.00021917,2]
[367097725,1750655446643,-586.0051348,0.00021917,2]
[367097726,1750655446652,-460.0,0.00021917,2]
[367097727,1750655446662,-2965.19,0.00021917,2]
[367097728,1750655446672,-460.68420026,0.00021917,2]
[367097729,1750655446683,-460.0,0.00021917,2]
[367097730,1750655446692,-679.62,0.00021917,2]
[367097731,1750655446704,-460.0,0.00021917,2]
[367097732,1750655446713,-3312.19,0.00021917,2]
[367097733,1750655446723,-460.0,0.00021917,2]
[367097734,1750655446732,-460.0,0.00021917,2]
[367097735,1750655446742,-460.0,0.00021917,2]
[367097736,1750655446752,-1036.85,0.00021917,2]
[367097737,1750655446762,-460.0,0.00021917,2]
[367097738,1750655446772,-460.0,0.00021917,2]
[367097739,1750655446782,-3188.9,0.00021917,2]
[367097740,1750655446793,-460.0,0.00021917,2]
[367097741,1750655446803,-8998.39,0.00021917,2]
[367097742,1750655446812,-460.0,0.00021917,2]
[367097743,1750655446822,-920.73,0.00021917,2]
[367097744,1750655446831,-920.73,0.00021917,2]
[367097745,1750655446841,-882.36,0.00021917,2]
[367097746,1750655446851,-920.73,0.00021917,2]
[367097747,1750655446861,-882.36,0.00021917,2]
[367097748,1750655446870,-920.73,0.00021917,2]
[367097749,1750655446879,-882.36,0.00021917,2]
[367097750,1750655446888,-920.73,0.00021917,2]
[367097751,1750655446898,-460.0,0.00021917,2]
[367097752,1750655446907,-882.36,0.00021917,2]
[367097753,1750655446915,-920.73,0.00021917,2]
[367097754,1750655446925,-882.36,0.00021917,2]
[367097755,1750655446936,-920.73,0.00021917,2]
[367097756,1750655446945,-1312.23,0.00021917,2]
[367097757,1750655446954,-882.36,0.00021917,2]
[367097758,1750655446963,-920.73,0.00021917,2]
[367097759,1750655446971,-882.36,0.00021917,2]
[367097760,1750655446981,-920.73,0.00021917,2]
[367097761,1750655446990,-882.36,0.00021917,2]
[367097762,1750655446999,-920.73,0.00021917,2]
[367097763,1750655447008,-882.36,0.00021917,2]
[367097764,1750655447017,-920.73,0.00021917,2]
[367097765,1750655447026,-460.0,0.00021917,2]
[367097766,1750655447035,-882.36,0.00021917,2]
[367097767,1750655447045,-920.78924809,0.00021917,2]
[367097768,1750655447054,-882.36,0.00021917,2]
[367097769,1750655447122,-882.36,0.00021917,2]
[367097770,1750655447131,-460.0,0.00021917,2]
[367097771,1750655447140,-5181.82,0.00021917,2]
[367097772,1750655447149,-460.0,0.00021917,2]
[367097773,1750655447159,-1431.61,0.00021917,2]
[367097774,1750655447168,-460.0,0.00021917,2]
[367097775,1750655447177,-460.0,0.00021917,2]
[367097776,1750655447188,-476.07,0.00021917,2]
[367097777,1750655447197,-841.51,0.00021917,2]
[367097778,1750655447206,-462.07128322,0.00021917,2]
[367097779,1750655447214,-460.0,0.00021917,2]
[367097780,1750655447223,-151.0,0.00021917,2]
[367097781,1750655447232,-460.0,0.00021917,2]
[367097782,1750655447241,-531.94,0.00021917,2]
[367097783,1750655447249,-460.0,0.00021917,2]
[367097784,1750655447258,-509.78,0.00021917,2]
[367097785,1750655447267,-223.30599992,0.00021917,2]
[367097786,1750655447276,-716.68,0.00021917,2]
[367097787,1750655447285,-1678.99,0.00021917,2]
[367097788,1750655447294,-460.0,0.00021917,2]
[367097789,1750655447303,-460.0,0.00021917,2]
[367097790,1750655447312,-383.98123954,0.00021917,2]
[367097791,1750655447321,-492.53,0.00021917,2]
[367097792,1750655447331,-5251.6,0.00021917,2]
[367097793,1750655447340,-460.0,0.00021917,2]
[367097794,1750655447349,-460.0,0.00021917,2]
[367097795,1750655447360,-460.0,0.00021917,2]
[367097796,1750655447369,-460.0,0.00021917,2]
[367097797,1750655447379,-510.01516454,0.00021917,2]
[367097798,1750655447388,-673.85,0.00021917,2]
[367097799,1750655447396,-460.0,0.00021917,2]
[367097800,1750655447406,-460.0,0.00021917,2]
[367097801,1750655447415,-710.47,0.00021917,2]
[367097802,1750655447424,-460.0,0.00021917,2]
[367097803,1750655447435,-460.0,0.00021917,2]
[367097804,1750655447445,-677.97,0.00021917,2]
[367097805,1750655447454,-3112.0,0.00021917,2]
[367097806,1750655447463,-460.0,0.00021917,2]
[367097807,1750655447473,-460.0,0.00021917,2]
[367097808,1750655447483,-500.0,0.00021917,2]
[367097809,1750655447493,-500.0,0.00021917,2]
[367097810,1750655447502,-500.0,0.00021917,2]
[367097811,1750655447511,-509.9088642,0.00021917,2]
[367097812,1750655447520,-460.0,0.00021917,2]
[367097813,1750655447529,-460.0,0.00021917,2]
[367097814,1750655447539,-460.0,0.00021917,2]
[367097815,1750655447548,-460.0,0.00021917,2]
[367097816,1750655447557,-1242.54,0.00021917,2]
[367097817,1750655447567,-460.0,0.00021917,2]
[367097818,1750655447576,-460.0,0.00021917,2]
[367097819,1750655447585,-460.0,0.00021917,2]
[367097820,1750655447595,-460.0,0.00021917,2]
[367097821,1750655447605,-20931.28,0.00021917,2]
[367097822,1750655447615,-460.0,0.00021917,2]
[367097823,1750655447624,-1694.06,0.00021917,2]
[367097824,1750655447633,-460.0,0.00021917,2]
[367097825,1750655447642,-460.0,0.00021917,2]
[367097826,1750655447651,-460.0,0.00021917,2]
[367097827,1750655447659,-460.0,0.00021917,2]
[367097828,1750655447669,-460.0,0.00021917,2]
[367097829,1750655447678,-460.0,0.00021917,2]
[367097830,1750655447689,-460.0,0.00021917,2]
[367097831,1750655447699,-460.0,0.00021917,2]
[367097832,1750655447712,-460.0,0.00021917,2]
[367097833,1750655447721,-460.0,0.00021917,2]
[367097834,1750655447731,-460.0,0.00021917,2]
[367097835,1750655447743,-988.54,0.00021917,2]
[367097836,1750655447752,-460.0,0.00021917,2]
[367097837,1750655447761,-460.0,0.00021917,2]
[367097838,1750655447770,-460.0,0.00021917,2]
[367097839,1750655447783,-460.0,0.00021917,2]
[367097840,1750655447794,-460.0,0.00021917,2]
[367097841,1750655447803,-460.0,0.00021917,2]
[367097842,1750655447814,-460.0,0.00021917,2]
[367097843,1750655447827,-460.12921962,0.00021917,2]
[367097844,1750655447838,-460.0,0.00021917,2]
[367097845,1750655447847,-460.0,0.00021917,2]
[367097846,1750655447857,-460.0,0.00021917,2]
[367097847,1750655447867,-831.12,0.00021917,2]
[367097848,1750655447877,-460.0,0.00021917,2]
[367097849,1750655447887,-460.0,0.00021917,2]
[367097850,1750655447897,-460.0,0.00021917,2]
[367097851,1750655447911,-1544.83,0.00021917,2]
[367097852,1750655447920,-151.0,0.00021917,2]
[367097853,1750655447929,-6730.47,0.00021917,2]
[367097854,1750655447943,-460.0,0.00021917,2]
[367097855,1750655447952,-460.0,0.00021917,2]
[367097856,1750655447961,-460.0,0.00021917,2]
[367097857,1750655447970,-460.0,0.00021917,2]
[367097858,1750655447978,-151.0,0.00021918,2]
[367097859,1750655447988,-400.0,0.00021918,7]
[367097860,1750655447997,-259.27366954,0.00021918,2]
[367097861,1750655448009,-151.0,0.00021961,7]
[367097862,1750655448018,-154.401029,0.00021961,7]
[367097863,1750655448027,-829.00907206,0.00021961,2]
[367097864,1750655448037,-500.0,0.00021973,2]
[367097865,1750655448046,-502.55035468,0.00021973,2]
[367097866,1750655448055,-500.0,0.00021973,2]
[367097867,1750655448064,-627.1042849,0.00021973,2]
[367097868,1750655448074,-500.0,0.00021973,2]
[367097869,1750655448082,-581.9702967,0.00021973,2]
[367097870,1750655448092,-500.0,0.00021973,2]
[367097871,1750655448100,-500.0,0.00021973,2]
[367097872,1750655448109,-500.0,0.00021973,2]
[367097873,1750655448119,-211.08068204,0.00021973,2]
[367097874,1750655448128,-502.2469423,0.00021973,2]
[367097875,1750655448137,-500.0,0.00021973,2]
[367097876,1750655448146,-500.72944794,0.00021973,2]
[367097877,1750655448156,-500.0,0.00021973,2]
[367097878,1750655448165,-500.0,0.00021973,2]
[367097879,1750655448174,-500.0,0.00021973,2]
[367097880,1750655448185,-500.0,0.00021973,2]
[367097881,1750655448195,-500.0,0.00021973,2]
[367097882,1750655448204,-500.0,0.00021973,2]
[367097883,1750655448213,-500.0,0.00021973,2]
[367097884,1750655448222,-500.0,0.00021973,2]
[367097885,1750655448232,-167.62540763,0.00021973,2]
[367097886,1750655448241,-500.0,0.00021973,2]
[367097887,1750655448252,-500.0,0.00021973,2]
[367097888,1750655448267,-500.0,0.00021973,2]
[367097889,1750655448277,-500.0,0.00021973,2]
[367097890,1750655448286,-300.0,0.0002198,2]
[367097891,1750655448295,-151.0,0.0002199,2]
[367097892,1750655448305,-25513.20807659,0.00021999,2]
[367097893,1750655448314,-200.0,0.00021999,2]
[367097894,1750655448323,-653.37154865,0.00022,7]
[367097895,1750655448332,-6987.2,0.00022,7]
[367097896,1750655448341,-1009109.56039097,0.00022,2]
[367097897,1750655448856,-1710.00325374,0.00022,2]
[367097898,1750655452202,-519.52,0.00021917,2]
[367097899,1750655452212,-1275.3,0.00021917,2]
[367097900,1750655452221,-460.0,0.00021917,2]
[367097901,1750655452230,-460.0,0.00021917,2]
[367097902,1750655452240,-1225274.40249438,0.00022,2]
[367097903,1750655517738,1021.01,0.00025,120]
[367097904,1750655606227,188.0,0.0002,2]
[367097905,1750655828841,158.596812,0.00013699,2]
[367097907,1750655959677,-289.923099,0.00020889,2]
[367097908,1750655959699,-280.3307339,0.00020916,2]
[367097909,1750655959720,-629.0352283,0.00020917,2]
[367097910,1750655959742,-158.596812,0.00021404,2]
[367097911,1750655959763,-236.29061796,0.00021817,2]
[367097912,1750655959784,-236.29061795,0.00021838,2]
[367097913,1750655959805,-236.29061795,0.00021859,2]
[367097914,1750655959826,-236.29061795,0.00021879,2]
[367097915,1750655959848,-163.90123036,0.000219,4]
[367097916,1750655959868,-3282.58444275,0.000219,2]
[367097917,1750655959889,-236.29061795,0.000219,2]
[367097918,1750655959910,-300.0,0.00021906,2]
[367097919,1750655959931,-507.08,0.00021907,10]
[367097920,1750655959951,-791.72,0.00021907,10]
[367097921,1750655959973,-203.0,0.00021915,2]
[367097922,1750655959997,-155.0,0.00021916,2]
[367097923,1750655960021,-177.01,0.00021916,2]
[367097924,1750655960049,-300.0,0.00021916,2]
[367097925,1750655960073,-500.0,0.00021917,2]
[367097926,1750655960094,-460.0,0.00021917,2]
[367097927,1750655960119,-460.0,0.00021917,2]
[367097928,1750655960141,-460.0,0.00021917,2]
[367097929,1750655960162,-460.0,0.00021917,2]
[367097930,1750655960182,-460.0,0.00021917,2]
[367097931,1750655960202,-594.41911813,0.00021917,2]
[367097932,1750655960223,-433.04079317,0.00021917,2]
[367097933,1750655960247,-460.0,0.00021917,2]
[367097934,1750655960269,-460.0,0.00021917,2]
[367097935,1750655960289,-200.0,0.00021917,10]
[367097936,1750655960310,-200.0,0.00021917,10]
[367097937,1750655960330,-541.85854381,0.00021917,2]
[367097938,1750655960350,-200.0,0.00021917,10]
[367097939,1750655960372,-200.0,0.00021917,10]
[367097940,1750655960392,-460.0,0.00021917,2]
[367097941,1750655960413,-200.0,0.00021917,10]
[367097942,1750655960433,-200.0,0.00021917,10]
[367097943,1750655960455,-460.0,0.00021917,2]
[367097944,1750655960477,-200.0,0.00021917,10]
[367097945,1750655960498,-1012.27,0.00021917,2]
[367097946,1750655960519,-200.0,0.00021917,10]
[367097947,1750655960541,-200.0,0.00021917,10]
[367097948,1750655960561,-200.0,0.00021917,10]
[367097949,1750655960582,-200.0,0.00021917,10]
[367097950,1750655960603,-200.0,0.00021917,10]
[367097951,1750655960625,-200.0,0.00021917,10]
[367097952,1750655960646,-388.7496603,0.00021917,2]
[367097953,1750655960668,-200.0,0.00021917,10]
[367097954,1750655960688,-200.0,0.00021917,10]
[367097955,1750655960710,-3103.78,0.00021917,2]
[367097956,1750655960735,-460.0,0.00021917,2]
[367097957,1750655960758,-200.0,0.00021917,10]
[367097958,1750655960778,-460.0,0.00021917,2]
[367097959,1750655960798,-151.0,0.00021917,2]
[367097960,1750655960819,-460.0,0.00021917,2]
[367097961,1750655960839,-200.0,0.00021917,10]
[367097962,1750655960861,-200.0,0.00021917,10]
[367097963,1750655960881,-507.15,0.00021917,2]
[367097964,1750655960902,-200.0,0.00021917,10]
[367097965,1750655960922,-200.0,0.00021917,10]
[367097966,1750655960942,-460.0,0.00021917,2]
[367097967,1750655960964,-200.0,0.00021917,10]
[367097968,1750655960984,-200.0,0.00021917,10]
[367097969,1750655961006,-200.0,0.00021917,10]
[367097970,1750655961026,-401.69998816,0.00021917,2]
[367097971,1750655961051,-460.0,0.00021917,2]
[367097972,1750655961071,-200.0,0.00021917,10]
[367097973,1750655961093,-460.0,0.00021917,2]
[367097974,1750655961114,-216.705257,0.00021917,10]
[367097975,1750655961134,-460.0,0.00021917,2]
[367097976,1750655961154,-235.83248476,0.00021917,2]
[367097977,1750655961174,-1000.23127981,0.00021917,2]
[367097978,1750655961199,-902.51,0.00021917,2]
[367097979,1750655961224,-460.0,0.00021917,2]
[367097980,1750655961248,-460.0,0.00021917,2]
[367097981,1750655961269,-461.84036779,0.00021917,2]
[367097982,1750655961293,-460.0,0.00021917,2]
[367097983,1750655961316,-350.277871,0.00021917,2]
[367097988,1750656332138,-300.0,0.00020916,2]
[367097989,1750656332162,-1698.43761009,0.00020917,2]
[367097991,1750656333093,-333.17478047,0.00020917,2]
[367098008,1750656432119,-300.0,0.00020916,2]
[367098009,1750656432141,-300.0,0.00020916,2]
[367098010,1750656432163,-1645.57358889,0.00020917,2]
[367098011,1750656441486,2071477.86728623,0.000249,120]
[367098012,1750656441510,620122.48800385,0.000249,120]
[367098016,1750656513355,996.18269311,0.000195,2]
[367098038,1750656631977,-300.0,0.00020916,2]
[367098039,1750656631987,-958.14015175,0.00020916,2]
[367098066,1750656637907,-241.85984825,0.00020916,2]
[367098067,1750656637917,-21222.81402055,0.00020917,2]
[367098068,1750656637927,-454.4130324,0.00020979,2]
[367098069,1750656637936,-800.0,0.0002167,2]
[367098070,1750656637945,-215.411,0.00021691,2]
[367098071,1750656637955,-444.71988057,0.00021715,2]
[367098072,1750656637965,-32773.05433111,0.000219,4]
[367098073,1750656637975,-2954.32599852,0.000219,2]
[367098074,1750656637984,-207.4,0.00021904,2]
[367098075,1750656637993,-659.77,0.00021907,10]
[367098076,1750656638002,-549.8,0.00021907,10]
[367098077,1750656638012,-621.91055343,0.00021916,7]
[367098078,1750656638021,-262.9783861,0.00021916,2]
[367098079,1750656638031,-264.81102444,0.00021916,2]
[367098080,1750656638040,-185.47,0.00021916,2]
[367098081,1750656638049,-500.0,0.00021917,2]
[367098082,1750656638058,-460.0,0.00021917,2]
[367098083,1750656638068,-460.0,0.00021917,2]
[367098084,1750656638077,-460.0,0.00021917,2]
[367098085,1750656638086,-460.0,0.00021917,2]
[367098086,1750656638095,-174.48392081,0.00021917,2]
[367098087,1750656638104,-295.19795197,0.00021917,2]
[367098088,1750656638113,-429.10236389,0.00021917,2]
[367098089,1750656638122,-460.0,0.00021917,2]
[367098090,1750656638131,-470.81705909,0.00021917,2]
[367098091,1750656638141,-460.0,0.00021917,2]
[367098092,1750656638150,-432.94515881,0.00021917,2]
[367098093,1750656638159,-460.0,0.00021917,2]
[367098094,1750656638168,-460.0,0.00021917,2]
[367098095,1750656638178,-315.29212914,0.00021917,2]
[367098096,1750656638187,-460.0,0.00021917,2]
[367098097,1750656638197,-460.0,0.00021917,2]
[367098098,1750656638206,-555.49,0.00021917,2]
[367098099,1750656638215,-460.78625412,0.00021917,2]
[367098100,1750656638224,-460.0,0.00021917,2]
[367098101,1750656638233,-460.0,0.00021917,2]
[367098102,1750656638242,-467.77977792,0.00021917,2]
[367098103,1750656638251,-460.0,0.00021917,2]
[367098104,1750656638260,-460.0,0.00021917,2]
[367098105,1750656638269,-460.0,0.00021917,2]
[367098106,1750656638278,-460.0,0.00021917,2]
[367098107,1750656638287,-460.0,0.00021917,2]
[367098108,1750656638296,-460.0,0.00021917,2]
[367098109,1750656638306,-460.0,0.00021917,2]
[367098110,1750656638316,-460.0,0.00021917,2]
[367098111,1750656638325,-460.0,0.00021917,2]
[367098112,1750656638334,-444.12479345,0.00021917,2]
[367098113,1750656638344,-460.0,0.00021917,2]
[367098114,1750656638353,-460.0,0.00021917,2]
[367098115,1750656638362,-460.0,0.00021917,2]
[367098116,1750656638374,-460.0,0.00021917,2]
[367098117,1750656638383,-460.0,0.00021917,2]
[367098118,1750656638392,-201.95662886,0.00021917,2]
[367098119,1750656638402,-812.88,0.00021917,2]
[367098120,1750656638413,-460.0,0.00021917,2]
[367098121,1750656638422,-460.0,0.00021917,2]
[367098122,1750656638431,-460.0,0.00021917,2]
[367098123,1750656638442,-460.0,0.00021917,2]
[367098124,1750656638450,-460.0,0.00021917,2]
[367098125,1750656638460,-460.0,0.00021917,2]
[367098126,1750656638468,-460.0,0.00021917,2]
[367098127,1750656638478,-460.0,0.00021917,2]
[367098128,1750656638487,-179.2834103,0.00021917,2]
[367098129,1750656638496,-460.0,0.00021917,2]
[367098130,1750656638506,-460.0,0.00021917,2]
[367098131,1750656638515,-460.0,0.00021917,2]
[367098132,1750656638524,-460.0,0.00021917,2]
[367098133,1750656638534,-460.0,0.00021917,2]
[367098134,1750656638543,-460.0,0.00021917,2]
[367098135,1750656638553,-593.09,0.00021917,2]
[367098136,1750656638759,-358.96505236,0.00021917,2]
[367098137,1750656638769,-151.0,0.00021917,2]
[367098138,1750656638779,-460.0,0.00021917,2]